bitfinex/quotes_BTCUSD_20251205
["timestamp","ask_amount","ask_price","bid_price","bid_amount"]
[1764942788841,0.08545,90687.0,90686.0,0.23156707]
[1764942789016,0.18460203,90687.0,90686.0,0.23156707]
[1764942789922,0.22056064,90679.0,90673.0,0.01102864]
[1764942790146,0.01756,90680.0,90678.0,0.2205602]
[1764942790392,0.16238,90679.0,90678.0,0.2205602]
[1764942790576,0.06385,90679.0,90678.0,0.2205602]
[1764942790744,0.16238,90679.0,90678.0,0.2205602]
[1764942790948,0.16538,90679.0,90678.0,0.2205602]
[1764942791846,0.18698,90679.0,90678.0,0.2205602]
[1764942792648,0.16238,90679.0,90678.0,0.2205602]
[1764942792868,0.07085,90679.0,90678.0,0.2205602]
[1764942793077,0.01,90679.0,90678.0,0.2205602]
[1764942793527,0.07385,90679.0,90678.0,0.2205602]
[1764942793733,0.01,90679.0,90678.0,0.2205602]
[1764942793910,0.007,90679.0,90678.0,0.2205602]
[1764942794135,0.01756,90685.0,90684.0,0.22054607]
[1764942794366,5.279e-05,90685.0,90684.0,0.22054607]
[1764942796120,0.00505279,90685.0,90684.0,0.22054607]
[1764942796506,0.00561559,90685.0,90684.0,0.22054607]
[1764942797042,0.00861559,90685.0,90684.0,0.22054607]
[1764942798407,0.17099559,90685.0,90684.0,0.22054607]
[1764942798810,0.17099559,90685.0,90683.0,0.22054791]
[1764942799017,0.0216,90681.0,90680.0,0.2205558]
[1764942799452,0.24756,90681.0,90680.0,0.2205558]
[1764942800169,0.24756,90681.0,90672.0,0.22057522]
[1764942800170,0.01102973,90664.0,90647.0,0.02896]
[1764942800340,0.323,90680.0,90647.0,0.02896]
[1764942800341,0.401355,90666.0,90661.0,0.0110301]
[1764942800564,0.01102973,90664.0,90659.0,0.01103034]
[1764942800725,0.06762,90681.0,90672.0,0.01102876]
[1764942800894,0.04602,90681.0,90678.0,0.01102803]
[1764942801092,0.04602,90681.0,90677.0,0.01102815]
[1764942801093,0.761641,90678.0,90677.0,0.01102815]
[1764942801338,0.323,90672.0,90670.0,0.22057927]
[1764942801508,0.34652652,90672.0,90670.0,0.23160827]
[1764942801711,0.48538,90671.0,90670.0,0.23160827]
[1764942801914,0.38685,90671.0,90670.0,0.32425424]
[1764942802173,0.323,90671.0,90670.0,0.32425424]
[1764942802383,0.04602,90681.0,90680.0,0.2205558]
[1764942802757,0.10987,90681.0,90680.0,0.2205558]
[1764942802931,0.2084,90681.0,90680.0,0.2205558]
[1764942803337,0.10987,90681.0,90680.0,0.2205558]
[1764942804051,0.11287,90681.0,90680.0,0.2205558]
[1764942804221,0.2114,90681.0,90680.0,0.2205558]
[1764942805148,0.0216,90680.0,90675.0,0.01102839]
[1764942805547,0.08545,90676.0,90675.0,0.01102839]
[1764942805785,0.06385,90676.0,90670.0,0.011029]
[1764942805981,0.02352139,90677.0,90676.0,0.22056553]
[1764942806204,0.01756,90677.0,90676.0,0.22056553]
[1764942806410,0.323,90678.0,90676.0,0.27019338]
[1764942806595,0.51639,90677.0,90676.0,0.22056553]
[1764942806816,0.49479,90677.0,90676.0,0.22056553]
[1764942806965,0.51639,90677.0,90676.0,0.22056553]
[1764942807144,0.52039,90677.0,90676.0,0.22056553]
[1764942807505,0.49879,90677.0,90676.0,0.22056553]
[1764942807897,0.323,90670.0,90667.0,0.22058701]
[1764942808055,0.06282,90668.0,90667.0,0.23161638]
[1764942809300,0.05657,90668.0,90667.0,0.23161638]
[1764942809447,0.05857,90668.0,90667.0,0.23161638]
[1764942809852,0.05657,90668.0,90667.0,0.23161638]
[1764942810103,0.05857,90668.0,90667.0,0.23161638]
[1764942810552,0.15198,90668.0,90667.0,0.23161638]
[1764942810959,0.06057,90668.0,90667.0,0.23161638]
[1764942811737,0.15198,90668.0,90667.0,0.23161638]
[1764942811937,0.06057,90668.0,90667.0,0.23161638]
[1764942812719,0.004,90668.0,90667.0,0.23161638]
[1764942814525,0.06682,90668.0,90667.0,0.23161638]
[1764942814724,0.15823,90668.0,90667.0,0.23161638]
[1764942816569,0.06682,90668.0,90667.0,0.23161638]
[1764942818337,0.004,90668.0,90667.0,0.23161638]
[1764942818738,0.06682,90668.0,90667.0,0.23161638]
[1764942820442,0.15823,90668.0,90667.0,0.23161638]
[1764942820671,0.15823,90668.0,90665.0,0.01102961]
[1764942820866,0.004,90668.0,90667.0,0.22058742]
[1764942821270,0.06682,90668.0,90667.0,0.22058742]
[1764942821475,0.06282,90668.0,90667.0,0.22058742]
[1764942821761,0.06482,90668.0,90667.0,0.22058742]
[1764942821936,0.15823,90668.0,90667.0,0.22058742]
[1764942822167,0.15623,90668.0,90667.0,0.22058742]
[1764942822750,0.15823,90668.0,90667.0,0.22058742]
[1764942825387,0.004,90668.0,90667.0,0.22058742]
[1764942825716,0.15823,90668.0,90667.0,0.22058742]
[1764942825858,0.06682,90668.0,90667.0,0.22058742]
[1764942827388,0.15802,90668.0,90667.0,0.22058742]
[1764942827765,0.15802,90668.0,90657.0,0.22061103]
[1764942827964,0.11379,90648.0,90647.0,0.22063609]
[1764942828406,0.20499,90648.0,90647.0,0.22063609]
[1764942829009,0.22659,90648.0,90647.0,0.22063609]
[1764942829205,0.22659,90648.0,90647.0,0.22103543]
[1764942830095,0.20499,90648.0,90647.0,0.22103543]
[1764942830300,0.11379,90648.0,90647.0,0.22103543]
[1764942830500,0.04976,90648.0,90647.0,0.31153856]
[1764942830837,0.05176,90648.0,90647.0,0.31153856]
[1764942831081,0.05276,90648.0,90647.0,0.31153856]
[1764942831578,0.003,90648.0,90647.0,0.37698143]
[1764942831788,0.003,90648.0,90647.0,0.31315143]
[1764942832279,0.88753419,90657.0,90654.0,0.01103095]
[1764942832514,0.66188807,90656.0,90654.0,0.01103095]
[1764942832647,0.08756007,90655.0,90653.0,0.22062122]
[1764942832847,0.08756007,90655.0,90648.0,0.23166335]
[1764942832848,0.0216,90650.0,90648.0,0.23166335]
[1764942833044,0.20499,90649.0,90648.0,0.23166335]
[1764942833447,0.22659,90649.0,90648.0,0.23166335]
[1764942834088,0.20499,90649.0,90648.0,0.23166335]
[1764942834496,0.04976,90649.0,90648.0,0.32326848]
[1764942834656,0.05076,90649.0,90648.0,0.32326848]
[1764942835177,0.05276,90649.0,90648.0,0.32326848]
[1764942835577,0.05276,90649.0,90648.0,0.23166335]
[1764942835745,0.003,90649.0,90648.0,0.23166335]
[1764942836373,0.003,90649.0,90648.0,0.35909622]
[1764942836780,0.003,90649.0,90648.0,0.29492622]
[1764942836973,0.001,90649.0,90648.0,0.29492622]
[1764942837179,0.001,90649.0,90648.0,0.35909622]
[1764942837378,0.04595,90661.0,90660.0,0.2204537]
[1764942837797,0.43449,90661.0,90660.0,0.2204537]
[1764942837999,0.53214,90661.0,90660.0,0.2204537]
[1764942838391,0.55565858,90661.0,90660.0,0.2204537]
[1764942838594,0.01103034,90659.0,90655.0,0.01103083]
[1764942838924,0.22061662,90655.0,90651.0,0.22062416]
[1764942839125,0.22061662,90655.0,90624.0,0.09729901]
[1764942839126,0.01103131,90651.0,90648.0,0.23166435]
[1764942839316,0.2532559,90652.0,90650.0,0.22062855]
[1764942839478,0.09765,90651.0,90649.0,0.23166247]
[1764942839672,0.09765,90651.0,90650.0,0.22062879]
[1764942839871,0.31827638,90651.0,90649.0,0.01103156]
[1764942840071,0.3446,90649.0,90648.0,0.23166532]
[1764942840295,0.24223365,90648.0,90647.0,0.00039934]
[1764942840513,0.18447,90648.0,90647.0,0.22103543]
[1764942840865,0.16287,90648.0,90647.0,0.00039934]
[1764942841068,2.744671,90648.0,90647.0,0.00039934]
[1764942841318,2.76817468,90648.0,90647.0,0.00039934]
[1764942841519,1.29833503,90648.0,90647.0,0.00039934]
[1764942841692,1.31589503,90648.0,90647.0,0.00039934]
[1764942842092,1.31589503,90648.0,90647.0,0.22103543]
[1764942842815,1.29334003,90648.0,90647.0,0.22103543]
[1764942843019,0.52594103,90648.0,90647.0,0.22103543]
[1764942843287,0.48787,90648.0,90647.0,0.22103543]
[1764942843412,0.50543,90648.0,90647.0,0.22103543]
[1764942843607,0.39222,90648.0,90647.0,0.22103543]
[1764942843908,0.40578,90648.0,90647.0,0.22103543]
[1764942844174,0.40578,90648.0,90647.0,0.22703543]
[1764942844368,0.38922,90648.0,90647.0,0.22703543]
[1764942844577,0.40678,90648.0,90647.0,0.22703543]
[1764942844939,0.50443,90648.0,90647.0,0.22703543]
[1764942846118,0.50343,90648.0,90647.0,0.22703543]
[1764942846311,0.04595,90650.0,90649.0,0.22063122]
[1764942846809,0.12905,90650.0,90649.0,0.22063122]
[1764942847164,0.2267,90650.0,90649.0,0.22063122]
[1764942847378,0.2287,90650.0,90649.0,0.22063122]
[1764942847804,0.3446,90649.0,90647.0,0.00039934]
[1764942848013,0.0611092,90648.0,90647.0,0.00039934]
[1764942848219,0.4817592,90648.0,90647.0,0.00039934]
[1764942848433,0.45418,90648.0,90647.0,0.22103543]
[1764942848641,0.67481365,90648.0,90647.0,0.00039934]
[1764942848853,1.29554699,90648.0,90647.0,0.00039934]
[1764942849337,1.40525205,90648.0,90647.0,0.00039934]
[1764942850149,1.40725205,90648.0,90647.0,0.00039934]
[1764942850354,1.41025205,90648.0,90647.0,0.00039934]
[1764942850804,1.30054699,90648.0,90647.0,0.00039934]
[1764942851012,1.38062998,90648.0,90647.0,0.00039934]
[1764942851435,1.409981,90648.0,90647.0,0.00039934]
[1764942851684,1.392421,90648.0,90647.0,0.00034934]
[1764942851850,1.409981,90648.0,90647.0,0.00034934]
[1764942852046,1.32689801,90648.0,90647.0,0.00034934]
[1764942852246,1.30054699,90648.0,90647.0,0.00034934]
[1764942852446,1.07991334,90648.0,90647.0,0.00034934]
[1764942852673,1.31610699,90648.0,90647.0,0.00034934]
[1764942852915,1.31310699,90648.0,90647.0,0.00034934]
[1764942853101,1.32010699,90648.0,90647.0,0.00034934]
[1764942853280,1.31610699,90648.0,90647.0,0.00034934]
[1764942854007,1.31910699,90648.0,90647.0,0.00034934]
[1764942854149,1.05931334,90648.0,90647.0,0.22098543]
[1764942854375,1.07687334,90648.0,90647.0,0.22098543]
[1764942854666,1.09847334,90648.0,90647.0,0.22098543]
[1764942855009,1.07687334,90648.0,90647.0,0.22098543]
[1764942855301,0.952735,90648.0,90647.0,0.22098543]
[1764942855504,0.612175,90648.0,90647.0,0.22098543]
[1764942856459,0.614175,90648.0,90647.0,0.22098543]
[1764942856713,0.711825,90648.0,90647.0,0.22098543]
[1764942857126,0.005,90648.0,90647.0,0.31369043]
[1764942857297,0.005,90648.0,90647.0,0.22098543]
[1764942858174,0.005,90648.0,90647.0,0.22088543]
[1764942858380,0.49119,90648.0,90647.0,0.22088543]
[1764942858557,0.51469902,90648.0,90647.0,0.22088543]
[1764942858758,0.51469885,90648.0,90647.0,0.22088543]
[1764942859008,0.71182365,90648.0,90647.0,0.00024934]
[1764942859231,0.7569325,90648.0,90647.0,0.00024934]
[1764942859917,1.9867435,90648.0,90647.0,0.00024934]
[1764942860117,2.09644856,90648.0,90647.0,0.00024934]
[1764942860580,1.7382335,90648.0,90647.0,0.00024934]
[1764942861492,1.6828885,90648.0,90647.0,0.00024934]
[1764942861765,1.6004085,90648.0,90647.0,0.00024934]
[1764942861894,0.62987385,90648.0,90647.0,0.00024934]
[1764942862085,0.64743385,90648.0,90647.0,0.00024934]
[1764942862617,0.66903385,90648.0,90647.0,0.00024934]
[1764942863019,0.8896675,90648.0,90647.0,0.00024934]
[1764942863222,0.66903385,90648.0,90647.0,0.00024934]
[1764942863420,0.66903385,90648.0,90647.0,0.22088543]
[1764942864011,0.66903385,90648.0,90647.0,0.00024934]
[1764942864215,0.8896675,90648.0,90647.0,0.00024934]
[1764942864399,0.66903385,90648.0,90647.0,0.00024934]
[1764942864752,0.64743385,90648.0,90647.0,0.22088543]
[1764942864981,0.35150885,90648.0,90647.0,0.22088543]
[1764942865136,0.35150885,90648.0,90647.0,0.37573974]
[1764942865137,0.005,90648.0,90647.0,0.37573974]
[1764942865337,0.005,90648.0,90647.0,0.31408974]
[1764942866485,0.494823,90658.0,90657.0,0.22061175]
[1764942866690,0.323,90658.0,90657.0,0.22061175]
[1764942866894,0.38526,90658.0,90657.0,0.22061175]
[1764942867274,0.323,90658.0,90657.0,0.22061175]
[1764942868863,0.33,90658.0,90657.0,0.22061175]
[1764942868995,0.326,90658.0,90657.0,0.22061175]
[1764942869181,0.327,90658.0,90657.0,0.22061175]
[1764942870281,0.004,90658.0,90657.0,0.37343459]
[1764942870483,0.004,90658.0,90657.0,0.37504746]
[1764942870787,0.004,90658.0,90657.0,0.43921746]
[1764942871099,0.001,90658.0,90657.0,0.43921746]
[1764942871624,0.000237,90674.0,90673.0,0.22057282]
[1764942871625,0.111662,90674.0,90673.0,0.22057282]
[1764942871806,0.435596,90674.0,90673.0,0.22057282]
[1764942872158,0.497856,90674.0,90673.0,0.22057282]
[1764942872292,0.323237,90674.0,90673.0,0.22057282]
[1764942872493,0.385497,90674.0,90673.0,0.22057282]
[1764942872691,0.323237,90674.0,90673.0,0.23616169]
[1764942873117,0.323237,90674.0,90673.0,0.23716169]
[1764942873312,0.323237,90674.0,90673.0,0.22157282]
[1764942873956,0.481527,90674.0,90673.0,0.22157282]
[1764942874342,0.481527,90674.0,90673.0,0.001]
[1764942874343,0.483527,90674.0,90673.0,0.001]
[1764942874551,0.72569739,90674.0,90673.0,0.001]
[1764942874755,0.74325739,90674.0,90673.0,0.001]
[1764942874975,0.74325739,90674.0,90667.0,0.01102937]
[1764942874976,0.23160578,90672.0,90669.0,0.01102912]
[1764942875183,0.01102949,90666.0,90659.0,0.01103034]
[1764942875376,0.417366,90662.0,90660.0,0.2316343]
[1764942875598,0.03875,90663.0,90660.0,0.2316343]
[1764942875599,0.48129,90661.0,90660.0,0.2316343]
[1764942875837,0.323,90660.0,90659.0,0.23163722]
[1764942876037,1.078297,90660.0,90659.0,0.23163722]
[1764942876237,0.977118,90660.0,90659.0,0.23163722]
[1764942876419,0.877989,90660.0,90659.0,0.23163722]
[1764942876827,0.776062,90660.0,90659.0,0.23163722]
[1764942877292,0.68338,90660.0,90659.0,0.23163722]
[1764942877464,0.70094,90660.0,90659.0,0.22060688]
[1764942877626,0.72254,90660.0,90659.0,0.22060688]
[1764942877824,0.70094,90660.0,90659.0,0.22060688]
[1764942878026,0.70394,90660.0,90659.0,0.23660688]
[1764942878210,0.72554,90660.0,90659.0,0.23660688]
[1764942878415,0.01103046,90658.0,90654.0,0.01103095]
[1764942878620,0.52908108,90660.0,90645.0,0.01103204]
[1764942878621,0.22063365,90648.0,90645.0,0.01103204]
[1764942878854,1.194539,90648.0,90643.0,0.01103229]
[1764942879090,1.290569,90648.0,90645.0,0.01103204]
[1764942879282,1.312169,90648.0,90645.0,0.01103204]
[1764942879474,1.290569,90648.0,90644.0,0.01103216]
[1764942879849,1.53280265,90648.0,90647.0,0.00124934]
[1764942880582,1.51120265,90648.0,90647.0,0.00124934]
[1764942880964,1.51320265,90648.0,90647.0,0.00124934]
[1764942882376,0.678056,90648.0,90647.0,0.22188543]
[1764942882571,0.642589,90648.0,90647.0,0.22188543]
[1764942882696,0.642589,90648.0,90647.0,0.22088543]
[1764942882899,0.640589,90648.0,90647.0,0.22088543]
[1764942883097,0.643589,90648.0,90647.0,0.22088543]
[1764942883742,0.640589,90648.0,90647.0,0.22088543]
[1764942883963,0.643589,90648.0,90647.0,0.00024934]
[1764942884129,0.643589,90648.0,90647.0,0.22088543]
[1764942884532,0.86422265,90648.0,90647.0,0.00024934]
[1764942885013,0.86422265,90648.0,90551.0,0.19744378]
[1764942885014,0.23174266,90618.0,90611.0,0.01103618]
[1764942885182,0.01756,90619.0,90616.0,0.01103557]
[1764942885509,0.01756,90619.0,90613.0,0.01103594]
[1764942885510,0.01103545,90617.0,90613.0,0.01103594]
[1764942885714,0.06226,90614.0,90612.0,0.23175668]
[1764942885865,0.03698,90613.0,90612.0,0.23175668]
[1764942886186,0.13301,90613.0,90612.0,0.22072131]
[1764942886733,0.02859521,90619.0,90612.0,0.22072131]
[1764942886735,0.02930232,90636.0,90617.0,0.08481397]
[1764942886942,0.09599,90658.0,90612.0,0.325874]
[1764942886943,0.02930232,90657.0,90656.0,0.22061418]
[1764942887149,0.04615,90665.0,90649.0,0.01103156]
[1764942887150,0.04615,90661.0,90659.0,0.22060688]
[1764942887370,0.02757555,90660.0,90659.0,0.22060688]
[1764942887577,0.41569555,90660.0,90659.0,0.22060688]
[1764942887776,0.48411,90660.0,90659.0,0.22060688]
[1764942888052,0.48450856,90660.0,90659.0,0.22060688]
[1764942888253,0.16150856,90660.0,90659.0,0.22060688]
[1764942888607,0.18908411,90660.0,90659.0,0.22060688]
[1764942888809,0.06551856,90660.0,90659.0,0.22060688]
[1764942888990,0.00039856,90660.0,90659.0,0.2357577]
[1764942889190,0.00039856,90660.0,90659.0,0.2990677]
[1764942889576,0.00239856,90660.0,90659.0,0.2990677]
[1764942890033,0.00039856,90660.0,90659.0,0.2990677]
[1764942890727,0.00039856,90660.0,90659.0,0.2357577]
[1764942891111,0.00039856,90660.0,90659.0,0.2387577]
[1764942891876,0.00039856,90660.0,90659.0,0.22521975]
[1764942892555,0.00039856,90660.0,90659.0,0.22360688]
[1764942892556,0.16150856,90660.0,90659.0,0.22360688]
[1764942892763,0.06551856,90660.0,90659.0,0.22360688]
[1764942893901,0.06651856,90660.0,90659.0,0.22060688]
[1764942894104,0.06751856,90660.0,90659.0,0.22060688]
[1764942894307,0.06651856,90660.0,90659.0,0.22060688]
[1764942894744,0.31751256,90660.0,90659.0,0.22060688]
[1764942895083,0.31851256,90660.0,90659.0,0.31215932]
[1764942895284,0.00139856,90660.0,90659.0,0.22060688]
[1764942895489,0.00239856,90660.0,90659.0,0.22060688]
[1764942895690,0.00239856,90660.0,90659.0,0.22460688]
[1764942895886,0.00239856,90660.0,90659.0,0.22621975]
[1764942896098,0.00039856,90660.0,90659.0,0.31833347]
[1764942896931,0.00039856,90660.0,90659.0,0.37902347]
[1764942899844,0.00039856,90660.0,90659.0,0.38002347]
[1764942900055,0.00039856,90660.0,90659.0,0.37602347]
[1764942900280,0.00039856,90660.0,90659.0,0.38202347]
[1764942900817,0.00039856,90660.0,90659.0,0.38302347]
[1764942901448,0.00039856,90660.0,90659.0,0.44744347]
[1764942901570,0.00039856,90660.0,90659.0,0.46894744]
[1764942902172,0.000237,90674.0,90673.0,0.22057282]
[1764942902393,0.000237,90674.0,90673.0,0.29680368]
[1764942902632,0.000237,90674.0,90673.0,0.36122368]
[1764942903838,0.000237,90674.0,90673.0,0.36222368]
[1764942904430,0.000237,90674.0,90673.0,0.36122368]
[1764942904619,0.000237,90674.0,90673.0,0.36522368]
[1764942904865,0.000237,90674.0,90673.0,0.36222368]
[1764942905236,0.000237,90674.0,90673.0,0.24211368]
[1764942905444,0.000237,90674.0,90673.0,0.25967368]
[1764942905693,0.000237,90674.0,90673.0,0.24211368]
[1764942907078,0.000237,90674.0,90673.0,0.30280368]
[1764942907391,0.000237,90674.0,90673.0,0.29680368]
[1764942907594,0.000237,90674.0,90673.0,0.36122368]
[1764942907820,0.000237,90674.0,90673.0,0.36722368]
[1764942909003,0.000237,90674.0,90673.0,0.405295]
[1764942909316,0.000237,90674.0,90673.0,0.404295]
[1764942909608,0.323,90704.0,90703.0,0.22049987]
[1764942909782,0.32311957,90704.0,90703.0,0.24475494]
[1764942909981,0.00011957,90704.0,90703.0,0.22049987]
[1764942910185,0.00011957,90704.0,90703.0,0.28118987]
[1764942910350,0.00011957,90704.0,90703.0,0.22049987]
[1764942910558,0.02755731,90720.0,90703.0,0.34722274]
[1764942910777,0.01656735,90733.0,90703.0,0.34722274]
[1764942910778,0.01656735,90733.0,90709.0,0.28278815]
[1764942911006,0.01656735,90733.0,90709.0,0.32185212]
[1764942911209,0.01656735,90733.0,90709.0,0.38615212]
[1764942912233,0.01656735,90733.0,90732.0,0.22042939]
[1764942912450,0.0166869,90733.0,90732.0,0.28273226]
[1764942913021,0.00011955,90733.0,90732.0,0.37484598]
[1764942913448,0.00011955,90733.0,90732.0,0.31415598]
[1764942913652,0.11222955,90733.0,90732.0,0.22204226]
[1764942914029,0.11222955,90733.0,90732.0,0.22642939]
[1764942914377,0.20317955,90733.0,90732.0,0.22642939]
[1764942914581,0.20317955,90733.0,90732.0,0.005]
[1764942914732,0.86184655,90733.0,90732.0,0.005]
[1764942914911,0.88344655,90733.0,90732.0,0.006]
[1764942915117,0.86184655,90733.0,90732.0,0.006]
[1764942915856,0.84428655,90733.0,90732.0,0.001]
[1764942916058,0.619585,90732.0,90731.0,0.22043009]
[1764942916275,0.655025,90732.0,90731.0,0.22043009]
[1764942916694,0.183247,90732.0,90731.0,0.2898674]
[1764942916852,0.183247,90732.0,90731.0,0.22043009]
[1764942916853,0.104707,90732.0,90731.0,0.22043009]
[1764942917036,0.00171704,90732.0,90731.0,0.22043009]
[1764942917236,0.00371704,90732.0,90731.0,0.22043009]
[1764942917446,0.06594704,90732.0,90731.0,0.22043009]
[1764942917622,0.00371704,90732.0,90731.0,0.22043009]
[1764942918282,0.00171704,90732.0,90731.0,0.22043009]
[1764942918719,0.00171704,90732.0,90731.0,0.2898674]
[1764942919659,0.00371704,90732.0,90731.0,0.2898674]
[1764942919860,0.15689704,90732.0,90731.0,0.22043009]
[1764942920630,0.15689704,90732.0,90726.0,0.01102219]
[1764942920631,0.01102171,90730.0,90726.0,0.01102219]
[1764942920841,0.15689704,90732.0,90725.0,0.22044534]
[1764942920842,0.06223,90727.0,90725.0,0.22044534]
[1764942921053,0.323,90728.0,90717.0,0.01102329]
[1764942921054,0.01102232,90725.0,90720.0,0.01102292]
[1764942921260,0.01102232,90725.0,90718.0,0.01102317]
[1764942921261,0.23147979,90721.0,90718.0,0.01102317]
[1764942921437,0.23147979,90721.0,90714.0,0.22047084]
[1764942921438,0.01102487,90704.0,90699.0,0.01102547]
[1764942921636,0.01102438,90708.0,90700.0,0.01102535]
[1764942921637,0.01102462,90706.0,90700.0,0.01102535]
[1764942921845,0.323,90706.0,90704.0,0.22049577]
[1764942922040,0.04988,90707.0,90706.0,0.22049258]
[1764942922311,0.37288,90712.0,90708.0,0.22048771]
[1764942922598,0.04988,90719.0,90717.0,0.22046584]
[1764942922599,0.336364,90718.0,90717.0,0.22046584]
[1764942922754,0.643064,90718.0,90717.0,0.22046584]
[1764942922954,0.47618,90718.0,90717.0,0.22046584]
[1764942923158,0.47618,90718.0,90714.0,0.22047151]
[1764942923159,1.309855,90716.0,90714.0,0.22047151]
[1764942923379,0.876379,90715.0,90714.0,0.22047151]
[1764942923585,0.652058,90714.0,90711.0,0.23150348]
[1764942923783,0.625816,90713.0,90712.0,0.22047565]
[1764942924102,0.716766,90713.0,90712.0,0.22047565]
[1764942924320,0.302366,90713.0,90712.0,0.22047565]
[1764942924855,0.002,90715.0,90714.0,0.22047313]
[1764942925504,0.06705,90715.0,90714.0,0.22047313]
[1764942925745,0.005,90716.0,90714.0,0.350426]
[1764942925952,0.00511955,90716.0,90715.0,0.06636876]
[1764942926145,0.00511955,90716.0,90715.0,0.24415645]
[1764942926316,0.00511955,90716.0,90715.0,0.24357056]
[1764942926548,0.00011955,90716.0,90715.0,0.24357056]
[1764942926892,0.00211955,90716.0,90715.0,0.24357056]
[1764942927459,0.00011955,90716.0,90715.0,0.25857056]
[1764942927674,0.00011955,90716.0,90715.0,0.25957056]
[1764942928205,0.00011955,90716.0,90715.0,0.23806659]
[1764942928428,0.00011955,90716.0,90715.0,0.17389659]
[1764942928636,0.00011955,90716.0,90715.0,0.15889659]
[1764942928977,0.00011955,90716.0,90715.0,0.016]
[1764942928978,0.15623955,90716.0,90715.0,0.016]
[1764942929120,0.06516955,90716.0,90715.0,0.016]
[1764942929324,0.00011955,90716.0,90714.0,0.22047313]
[1764942929528,0.00011955,90716.0,90715.0,0.014]
[1764942929722,0.00011955,90716.0,90715.0,0.015]
[1764942929951,0.00011955,90716.0,90715.0,0.001]
[1764942930156,0.00011955,90716.0,90715.0,0.09580172]
[1764942930333,0.15623955,90716.0,90715.0,0.002]
[1764942930535,0.37770782,90716.0,90715.0,0.002]
[1764942930763,1.04789382,90716.0,90715.0,0.002]
[1764942930963,1.34829382,90716.0,90715.0,0.002]
[1764942931136,1.39324567,90716.0,90715.0,0.002]
[1764942931342,1.39424567,90716.0,90715.0,0.002]
[1764942931537,1.39424567,90716.0,90696.0,0.01102584]
[1764942931538,0.0216,90700.0,90699.0,0.01102547]
[1764942931746,0.01752,90702.0,90700.0,0.22050669]
[1764942931949,0.11315,90700.0,90699.0,0.01102547]
[1764942932151,0.13067,90700.0,90699.0,0.01102547]
[1764942932368,0.22174,90700.0,90699.0,0.01102547]
[1764942932567,0.22174,90700.0,90698.0,0.22051141]
[1764942932877,0.03327,90699.0,90698.0,0.22051141]
[1764942933082,0.06562,90700.0,90698.0,0.22051141]
[1764942933083,0.006,90700.0,90698.0,0.29107642]
[1764942933264,0.0481,90705.0,90704.0,0.22049744]
[1764942934786,0.614378,90715.0,90714.0,0.22047313]
[1764942935152,0.5945781,90715.0,90714.0,0.22047313]
[1764942935308,0.6596281,90715.0,90714.0,0.22047313]
[1764942935502,0.5407171,90715.0,90714.0,0.22047313]
[1764942935703,0.00011955,90716.0,90714.0,0.22047313]
[1764942935890,0.00011955,90716.0,90714.0,0.2575627]
[1764942936715,0.008,90715.0,90714.0,0.222086]
[1764942937090,0.16412,90715.0,90714.0,0.22047313]
[1764942937478,0.07305,90715.0,90714.0,0.22047313]
[1764942937812,0.009214,90715.0,90714.0,0.22047313]
[1764942938013,0.001214,90715.0,90714.0,0.22047313]
[1764942938395,0.001214,90715.0,90714.0,0.23047313]
[1764942938596,0.001214,90715.0,90714.0,0.22047313]
[1764942938862,0.003214,90715.0,90714.0,0.31197029]
[1764942939067,0.003214,90715.0,90714.0,0.31997029]
[1764942939429,0.001214,90715.0,90714.0,0.31997029]
[1764942939961,0.001214,90715.0,90714.0,0.22947313]
[1764942940516,0.001214,90715.0,90714.0,0.230086]
[1764942941431,0.001214,90715.0,90714.0,0.294256]
[1764942941687,0.001214,90715.0,90714.0,0.230086]
[1764942941907,0.002214,90715.0,90714.0,0.358426]
[1764942942244,0.001214,90715.0,90714.0,0.294256]
[1764942942592,0.001214,90715.0,90714.0,0.295256]
[1764942943488,0.001214,90715.0,90714.0,0.359426]
[1764942948556,0.001214,90715.0,90714.0,0.295256]
[1764942949139,0.001214,90715.0,90714.0,0.231086]
[1764942949369,0.001214,90715.0,90714.0,0.32539645]
[1764942950822,0.157334,90715.0,90714.0,0.231086]
[1764942951014,0.157334,90715.0,90714.0,0.22947313]
[1764942951523,0.157334,90715.0,90714.0,0.22847313]
[1764942951714,0.157334,90715.0,90714.0,0.22047313]
[1764942951928,0.158334,90715.0,90714.0,0.22047313]
[1764942952098,0.164334,90715.0,90714.0,0.22047313]
[1764942952262,0.157334,90715.0,90714.0,0.22047313]
[1764942952659,0.159334,90715.0,90714.0,0.22047313]
[1764942953198,0.003214,90715.0,90714.0,0.22047313]
[1764942953765,0.001214,90715.0,90714.0,0.22047313]
[1764942954218,0.070594,90715.0,90714.0,0.22047313]
[1764942954784,0.163504,90715.0,90714.0,0.22047313]
[1764942955186,0.161504,90715.0,90714.0,0.22047313]
[1764942955706,0.163504,90715.0,90714.0,0.22047313]
[1764942955909,0.009214,90715.0,90714.0,0.31197029]
[1764942956429,0.009214,90715.0,90714.0,0.22047313]
[1764942956980,0.007214,90715.0,90714.0,0.22047313]
[1764942957117,0.007214,90715.0,90714.0,0.22147313]
[1764942957324,0.007214,90715.0,90714.0,0.279716]
[1764942957526,0.001214,90715.0,90714.0,0.279716]
[1764942957773,0.001214,90715.0,90714.0,0.287716]
[1764942958060,0.001214,90715.0,90714.0,0.344346]
[1764942964124,0.001214,90715.0,90714.0,0.231086]
[1764942964583,0.001214,90715.0,90714.0,0.287716]
[1764942965576,0.001214,90715.0,90714.0,0.344346]
[1764942965988,0.001214,90715.0,90714.0,0.361866]
[1764942966185,0.0002,90740.0,90739.0,0.22041239]
[1764942966186,0.0218,90740.0,90739.0,0.22041239]
[1764942966367,0.10857,90740.0,90739.0,0.22041239]
[1764942966572,0.16667,90740.0,90739.0,0.22041239]
[1764942967647,0.16667,90740.0,90733.0,0.01102134]
[1764942967648,0.22041969,90736.0,90733.0,0.01102134]
[1764942967852,0.22041969,90736.0,90729.0,0.22043531]
[1764942967853,0.0216,90732.0,90729.0,0.22043531]
[1764942968023,0.0216,90724.0,90723.0,0.01102256]
[1764942968244,0.0216,90725.0,90724.0,0.01102244]
[1764942968411,0.0491558,90725.0,90724.0,0.23147127]
[1764942968590,0.0216,90722.0,90721.0,0.0110228]
[1764942968805,0.01752,90732.0,90731.0,0.22043182]
[1764942969062,0.01102171,90730.0,90726.0,0.01102219]
[1764942969341,1.601482,90727.0,90726.0,0.23146558]
[1764942969653,1.35647205,90727.0,90726.0,0.23146558]
[1764942969800,0.51496705,90727.0,90726.0,0.23146558]